Cogmind - Beta 16 @@@ ROGUE MODE // 2026.02.05 @ 21:23:20 Player: eb Result: Destroyed by G-73 Enforcer with Phase Gun Performance ------------- Evolutions (5) 2500 Regions Visited (11) 2200 Robots Destroyed (81) 405 Value Destroyed (2953) 2953 Prototype IDs (16) 320 Alien Tech Used (1) 200 Bonus (976) 976 TOTAL SCORE: 9554 Bonus ------- Follower Combat Kills 176 Registered with UFD 300 Met Optimus in HQ 500 Cogmind --------- Core Integrity 0/1000 Matter 201/300 Energy 100/100 System Corruption 25% Temperature Cool (9) Movement Core (150) Ox2 Location -4/Proximity Caves Parts ------- > --- POWER (2) -------- (None) > --- PROPULSION (4) --- (None) > --- UTILITY (8) ------ Advanced Power Amplifier Enhanced Optical Array Advanced Signal Interpreter Improved Target Analyzer Advanced ECM Suite Graphene Brace Advanced System Shield > --- WEAPON (3) ------- (None) > --- INVENTORY (5) ---- Precision Matter Filter Precision Matter Filter Integrated Reactor Peak State ------------ > --- POWER ------------ Light Angular Momentum Engine Neutrino Core > --- PROPULSION ------- Carbon-fiber Leg Carbon-fiber Leg Antigrav System Antigrav System > --- UTILITY ---------- Improved Heat Sink Enhanced Optical Array Advanced Signal Interpreter Advanced Melee Analysis Suite Improved Target Analyzer Improved Target Analyzer Graphene Brace Improved Hacking Suite > --- WEAPON ----------- Advanced Plasma Cannon Greatsword > --- INVENTORY -------- Light Angular Momentum Engine Precision Matter Filter Long-range Proton Cannon Mass Driver DRS Beacon [Rating: 86] Favorites ----------- Power Light Ion Engine Engine Light Ion Engine Power Core Neutrino Core Reactor Fusion Reactor Propulsion Armored Wheel Treads Light Treads Leg Carbon-fiber Leg Wheel Armored Wheel Hover Unit Antigrav System Flight Unit Nuclear Pulse Thruster Utility Large Storage Unit Device Graphene Brace Storage Large Storage Unit Processor Enhanced Optical Array Hackware Improved Hacking Suite Protection Improved Light Armor Plating Weapon Improved Assault Rifle Energy Gun Plasma Rifle Energy Cannon Heavy Ion Cannon Ballistic Gun Improved Assault Rifle Ballistic Cannon Heavy Assault Cannon Launcher Improved Proton Missile Launcher Impact Weapon Powered Hammer Slashing Weapon Greatsword Build | -11 -10 -10 -10 -9 -6 -6 -5 -5 -5 -5 -4 ------- Run | Yrd Mat Min Sub Scr Fac Ext Fac Upp Upp Zhi Pro Slots Evolved 10 | . . . . . 8 . 2 . . . . Power 1 | . . . . . . . 1 . . . . Propulsion 2 | . . . . . 2 . . . . . . Utility 6 | . . . . . 6 . . . . . . Weapon 1 | . . . . . . . 1 . . . . Parts Attached 108 | 6 14 4 1 4 22 27 14 5 3 8 . Power 13 | 1 1 2 . 1 2 1 4 . . 1 . Engine 9 | 1 1 2 . 1 1 1 2 . . . . Core 3 | . . . . . 1 . 2 . . . . Reactor 1 | . . . . . . . . . . 1 . Propulsion 31 | 2 2 1 . 1 4 12 3 1 1 4 . Treads 2 | 2 . . . . . . . . . . . Leg 16 | . . . . . . 12 . . . 4 . Wheel 8 | . 2 1 . 1 4 . . . . . . Hover 4 | . . . . . . . 2 1 1 . . Flight 1 | . . . . . . . 1 . . . . Utility 36 | 1 5 . 1 . 13 8 3 2 . 3 . Device 12 | . . . 1 . 5 3 1 . . 2 . Storage 4 | 1 3 . . . . . . . . . . Processor 8 | . 1 . . . 3 1 2 1 . . . Hackware 4 | . . . . . 2 . . 1 . 1 . Protection 8 | . 1 . . . 3 4 . . . . . Artifact . | . . . . . . . . . . . . Weapon 28 | 2 6 1 . 2 3 6 4 2 2 . . Energy Gun 1 | . . . . . . . 1 . . . . Energy Cannon 6 | . . . . 1 1 2 1 1 . . . Ballistic Gun 10 | 2 3 1 . . 1 1 1 . 1 . . Ballistic Cannon 4 | . 2 . . . . 1 . 1 . . . Launcher 2 | . . . . . . 1 . . 1 . . Special Weapon . | . . . . . . . . . . . . Impact Weapon 4 | . 1 . . 1 1 1 . . . . . Slashing Weapon 1 | . . . . . . . 1 . . . . Piercing Weapon . | . . . . . . . . . . . . Special Melee Weapon . | . . . . . . . . . . . . Unidentified Prototypes 4 | . 1 . . . . . . . . 2 1 Corrupted Parts 4 | . . . . . . 3 . . . 1 . System Corruption 14 | . . . . . . 8 . . . 6 . Parts Lost 52 | . . 1 . . 14 12 11 3 9 . 2 Power 7 | . . 1 . . 2 . 3 1 . . . Propulsion 19 | . . . . . 5 5 4 1 3 . 1 Utility 16 | . . . . . 6 4 2 . 3 . 1 Weapon 10 | . . . . . 1 3 2 1 3 . . Highest Loss Streak 8 | . . 1 . . 6 4 5 3 8 . 1 To Critical Strikes . | . . . . . . . . . . . . Average Backups 10 | 2 11 14 14 13 11 11 9 3 3 4 3 Power 1 | . . 1 1 1 1 1 2 . . . . Propulsion 2 | 1 3 5 5 4 1 . 2 . . 1 . Utility 3 | . 1 4 5 5 3 3 . 2 2 1 2 Weapon 3 | . 5 3 3 2 4 5 3 1 . . . Tool/Special . | . . . . . . . . . . . . Unused Backups 27 | . 9 2 . 1 2 2 5 2 1 . 3 Power 2 | . . . . . . 1 1 . . . . Propulsion 4 | . 2 . . . . . 1 1 . . . Utility 8 | . . 1 . 1 2 1 . . 1 . 2 Weapon 10 | . 6 1 . . . . 2 1 . . . Tool/Special 3 | . 1 . . . . . 1 . . . 1 Average Slot Usage (%) 84 | . 94 99 100 82 94 89 86 62 47 48 71 Engine 7 | . 14 13 14 14 2 6 1 . . . . Treads 2 | . 18 . . . . . . . . . . Leg 6 | . . . . . . 22 16 . . 9 23 Wheel 12 | . 9 28 28 28 23 . . . . . . Hover 1 | . . . . . . . 2 8 4 . . Device 9 | . . . 11 14 17 9 10 11 11 16 18 Storage 8 | . 18 14 14 14 6 6 3 . . . . Processor 10 | . 1 14 2 . 9 13 22 26 20 17 17 Hackware 4 | . . . . . 12 7 5 7 6 2 5 Protection 3 | . 3 . . . 4 11 . . . . . Energy Cannon 2 | . . . . 4 8 2 1 . . . . Ballistic Gun 5 | . 10 28 28 . 1 . . . . . . Ballistic Cannon 2 | . 9 . . . . 2 . 4 2 . . Impact Weapon 3 | . 8 . . 6 2 3 . . . . . Peak Build Rating 86 | 6 15 16 17 24 62 67 86 69 60 80 80 Average Rating 38 | 4 9 15 16 15 50 62 74 56 41 52 76 On Entrance 33 | . 6 15 16 11 24 45 55 64 56 26 80 Avg Prop Armor Cover (%) 5 | . . . . . . 7 4 5 7 . . Naked Turns . | . . . . . . . . . . . . Heaviest Build 71 | 11 34 31 30 42 55 71 69 20 11 20 20 Greatest Support 105 | 40 40 24 24 24 48 65 65 11 12 105 105 Greatest Overweight (x) 3 | . 1 1 1 1 2 3 3 1 . . . Average Overweight (x) . | . . 1 . . . . . . . . . Largest Inventory Capacity 15 | 8 15 15 15 15 15 15 15 5 5 5 5 Average Capacity 12 | 6 12 15 15 15 15 15 12 5 5 5 5 Most Carried 15 | 4 15 15 15 15 15 15 15 5 5 5 4 Average Carried 11 | 2 11 14 14 14 13 13 11 4 3 4 3 Final Capacity 15 | 8 15 15 15 15 15 15 5 5 5 5 5 Final Carried 15 | 4 15 15 14 15 15 14 5 5 3 4 3 Class Distribution -------------------- 51% | Mutant 24% | Scavenger-Mutant 13% | Hacker-Mutant 5% | Scavenger-Gladiator Dominant Class ---------------- Mutant | -10/Materials Mutant | -10/Mines Mutant | -10/Subcaves Mutant | -9/Scraptown Hacker-Mutant | -6/Factory Scavenger-Mutant | -6/Extension Scavenger-Gladiator | -5/Factory Scavenger-Mutant | -5/Upper Caves Hacker-Mutant | -5/Upper Caves Mutant | -5/Zhirov Mutant | -4/Proximity Caves Resources | -11 -10 -10 -10 -9 -6 -6 -5 -5 -5 -5 -4 ----------- Run | Yrd Mat Min Sub Scr Fac Ext Fac Upp Upp Zhi Pro Matter Collected 2604 | 256 309 292 46 30 220 848 282 258 63 . . Remotely . | . . . . . . . . . . . . Salvage Created 2997 | . 424 284 56 . 620 1076 300 116 121 . . Parts 127 | . 25 15 3 . 28 35 9 9 3 . . Haulers Intercepted 2 | . 1 . . . . 1 . . . . . Recyclers Shooed 3 | . . . . . 2 1 . . . . . Parts Field Recycled . | . . . . . . . . . . . . Retrieved Matter . | . . . . . . . . . . . . Parts Self-Destructed 16 | . . . 3 . . . . 7 6 . . Prevented 3 | . . . . . . . . 1 2 . . Parts Restored . | . . . . . . . . . . . . Kills | -11 -10 -10 -10 -9 -6 -6 -5 -5 -5 -5 -4 ------- Run | Yrd Mat Min Sub Scr Fac Ext Fac Upp Upp Zhi Pro Combat Hostiles Destroyed 62 | . 15 6 1 . 10 17 5 5 3 . . Melee 7 | . 5 . . . . 1 1 . . . . Guns 21 | . 6 6 1 . 2 1 3 . 2 . . Cannons 22 | . 4 . . . 1 12 . 5 . . . AOE 5 | . . . . . 3 2 . . . . . Classes Destroyed 17 | . 5 . 1 . 7 3 1 . . . . Worker 4 | . 2 . . . 1 . 1 . . . . Builder 3 | . . . . . 2 1 . . . . . Tunneler 1 | . . . . . 1 . . . . . . Hauler 2 | . 1 . . . . 1 . . . . . Recycler 1 | . . . . . . 1 . . . . . Operator 4 | . 4 . . . . . . . . . . Watcher 4 | . . . . . 1 3 . . . . . Swarmer 20 | . 12 . . . 1 . . 5 2 . . Grunt 20 | . 3 6 . . 3 8 . . . . . Brawler 2 | . . . . . 2 . . . . . . Sentry 6 | . . . 1 . . 4 . . 1 . . Specialist 2 | . . . . . 2 . . . . . . Hunter 3 | . . . . . 1 1 1 . . . . Programmer 4 | . . . . . . . 4 . . . . Heavy 1 | . . . . . 1 . . . . . . Behemoth 1 | . . . . . . 1 . . . . . Decomposer 1 | . . . . . . . . 1 . . . Thug 1 | . . . . . . 1 . . . . . Butcher 1 | . . . . . . 1 . . . . . Guerrilla 1 | . . . . . . 1 . . . . . Best Kill Streak 6 | . 6 2 1 . 6 6 4 5 2 . . Combat Bots Only 6 | . 6 2 1 . 3 3 2 5 2 . . Max Kills in Single Turn 6 | . 1 1 1 . 6 4 2 1 1 . . Gunslinging 1 | . . . . . . . 1 . . . . Exploded 2 | . . . . . 2 2 . . . . . Melee 1 | . 1 . . . . 1 1 . . . . Uniques/NPCs Destroyed . | . . . . . . . . . . . . Combat | -11 -10 -10 -10 -9 -6 -6 -5 -5 -5 -5 -4 -------- Run | Yrd Mat Min Sub Scr Fac Ext Fac Upp Upp Zhi Pro Hostile Shots Fired 759 | . 67 30 8 . 123 251 91 28 106 . 55 Missed 232 | . 21 8 3 . 24 90 23 4 40 . 19 Hits 527 | . 46 22 5 . 99 161 68 24 66 . 36 Melee 4 | . . . . . . . 3 . . . 1 Projectile 523 | . 46 22 5 . 99 161 65 24 66 . 35 Critical Strikes 26 | . 1 2 . . 8 4 9 . . . 2 Actively Blocked 15 | . . . . . . 4 9 . . . 2 Part Disruptions 2 | . . 2 . . . . . . . . . Damage Taken 8912 | . 392 300 70 . 2070 2506 1549 359 983 . 683 Core 1806 | . 76 34 26 . 357 313 375 68 361 . 196 Absorbed by Shields . | . . . . . . . . . . . . Ignored by Resistances 252 | . . . . . 236 16 . . . . . Core Remaining (%) 55 | 100 . . . 45 . 21 . . . . . Volleys Fired 271 | . 24 23 6 . 62 89 29 23 15 . . Largest 2 | . 2 2 2 . 2 2 2 1 1 . . Hottest 155 | . 50 46 46 . 155 154 108 98 47 . . Shots Fired 383 | . 34 47 12 . 90 116 44 26 14 . . Gun 172 | . 19 47 12 . 27 25 32 . 10 . . Cannon 209 | . 15 . . . 63 90 12 26 3 . . Launcher 2 | . . . . . . 1 . . 1 . . Special . | . . . . . . . . . . . . Kinetic 247 | . 34 47 12 . 27 78 15 21 13 . . Thermal 118 | . . . . . 63 25 29 1 . . . Explosive . | . . . . . . . . . . . . Electromagnetic 18 | . . . . . . 13 . 4 1 . . Robot Hit Streak 16 | . 8 16 5 . 10 13 7 5 5 . . Robot Miss Streak 6 | . 3 4 1 . 2 2 2 6 2 . . Penetration Max 2 | . . . . . 2 1 1 . . . . Secondary Targets 3 | . 1 . . . . . 2 . . . . Max Gunslinging Chain 1 | . 1 . . . . . 1 . . . . Shots Hit Robots 273 | . 42 30 10 . 58 86 29 10 8 . . Core Hits 106 | . 15 13 2 . 20 30 10 7 8 . 1 Critical Kills 4 | . . . . . 4 . . . . . . Critical Parts Destroyed 13 | . 3 . . . 9 1 . . . . . Critical Strikes 27 | . 3 . . . 13 7 4 . . . . Burn 4 | . . . . . . . 4 . . . . Meltdown 1 | . . . . . 1 . . . . . . Destroy 10 | . . . . . 10 . . . . . . Blast 5 | . . . . . . 5 . . . . . Corrupt 1 | . . . . . . 1 . . . . . Smash 6 | . 3 . . . 2 1 . . . . . Melee Attacks 58 | . 28 . . . 5 22 3 . . . . Impact 55 | . 28 . . . 5 22 . . . . . Slashing 3 | . . . . . . . 3 . . . . Piercing . | . . . . . . . . . . . . Sneak Attacks 8 | . 7 . . . . 1 . . . . . Combat Hostiles . | . . . . . . . . . . . . Follow-up Attacks 1 | . . . . . 1 . . . . . . Damage Inflicted 9768 | . 1186 457 147 . 2490 3885 961 362 256 . 24 Guns 2227 | . 139 457 147 . 176 543 626 . 139 . . Cannons 4971 | . 161 . . . 1241 2907 232 362 68 . . Explosions 1094 | . . . . . 868 226 . . . . . Melee 1375 | . 886 . . . 205 181 103 . . . . Ramming 101 | . . . . . . 28 . . 49 . 24 Kinetic 4474 | . 300 457 147 . 176 2524 358 305 207 . . Thermal 3294 | . . . . . 2109 685 500 . . . . Explosive . | . . . . . . . . . . . . Electromagnetic 524 | . . . . . . 467 . 57 . . . Impact 1272 | . 886 . . . 205 181 . . . . . Slashing 103 | . . . . . . . 103 . . . . Piercing . | . . . . . . . . . . . . Highest Corruption 25 | . 3 3 3 3 1 8 14 14 19 25 25 Average Corruption 7 | . 2 3 3 3 1 1 10 14 15 19 25 Corruption Purged 1 | . . . . . . 1 . . . . . Corruption Blocked . | . . . . . . . . . . . . Effects 101 | . 1 15 2 . 2 4 21 24 17 7 8 Message Errors 26 | . . 6 1 . 1 1 5 6 3 2 1 Matter Fused 19 | . 1 2 . . . 2 7 1 3 2 1 Heat Flow Errors 12 | . . 2 . . . . 1 3 3 2 1 Energy Discharges 11 | . . 1 1 . . . 3 2 4 . . Parts Rejected 2 | . . . . . . . 1 . . . 1 Parts Fused 2 | . . . . . . . 1 1 . . . Data Loss (minor) 15 | . . 2 . . 1 . 3 5 3 . 1 Data Loss (major) 4 | . . 1 . . . . . 2 . 1 . Misfires 5 | . . 1 . . . 1 . 3 . . . Alerts 2 | . . . . . . . . 1 . . 1 Misdirections 2 | . . . . . . . . . . . 2 Weapon Failures 1 | . . . . . . . . . 1 . . Overload Shots . | . . . . . . . . . . . . Overflow Damage 729 | . 267 . . . 305 153 . . 4 . . Projectiles 104 | . 8 . . . 39 57 . . . . . Explosions 193 | . . . . . 188 5 . . . . . Melee 432 | . 259 . . . 78 91 . . 4 . . Knockbacks 27 | . 9 . . . 2 11 . 3 . . 2 Impact 9 | . 6 . . . 1 1 . . . . 1 Kinetic 15 | . 3 . . . . 9 . 3 . . . Secondary 3 | . . . . . 1 1 . . . . 1 Self-Inflicted Damage 298 | . . . . . 267 . . . 31 . . Shots 5 | . . . . . 4 . . . 1 . . Rammed 17 | . . . . . . . . . 17 . . Targets Rammed 22 | . . . . . . 2 . . 17 . 3 Kicked 5 | . . . . . . 2 . . . . 3 Crushed . | . . . . . . . . . . . . Highest Temperature 468 | . . 269 . . 468 172 229 170 240 233 206 Average Temperature 77 | . . 82 . . 120 50 52 59 101 118 93 Received Heat Transfer 1718 | . 30 260 18 . 567 579 144 9 12 . 99 Effects 6 | . . . . . 6 . . . . . . Shutdowns 2 | . . . . . 2 . . . . . . Energy Bleed 1 | . . . . . 1 . . . . . . Matter Decay 1 | . . . . . 1 . . . . . . Short Circuit 1 | . . . . . 1 . . . . . . Damage (minor) 1 | . . . . . 1 . . . . . . Siege Activations . | . . . . . . . . . . . . Martial Activations . | . . . . . . . . . . . . Shielding Activations . | . . . . . . . . . . . . Robots Disrupted . | . . . . . . . . . . . . Combat Hostiles . | . . . . . . . . . . . . Robots Corrupted 9 | . 5 . . . 1 2 . . 1 . . Combat Hostiles 3 | . . . . . 1 1 . . 1 . . Parts Fried 11 | . 8 . . . . 1 . . 2 . . Impact Corruptions 20 | . 13 . . . 2 4 . . 1 . . Robots Melted 4 | . . . . . 3 . 1 . . . . Combat Hostiles 4 | . . . . . 3 . 1 . . . . Parts Melted 14 | . . . . . 4 1 9 . . . . Heat Transferred 4249 | . . . . . 2320 679 1250 . . . . Parts Sabotaged 4 | . . . . . . . . . . . 4 Parts Stolen . | . . . . . . . . . . . . Parts Stripped . | . . . . . . . . . . . . Power Chain Reactions 1 | . . . . . . 1 . . . . . Alert | -11 -10 -10 -10 -9 -6 -6 -5 -5 -5 -5 -4 ------- Run | Yrd Mat Min Sub Scr Fac Ext Fac Upp Upp Zhi Pro Maximum Alert Level 1 | . . . . . 1 1 . . . . . Low Security (%) 97 | 100 100 100 . . 86 99 100 . . . . Level 1 2 | . . . . . 13 . . . . . . Level 2 . | . . . . . . . . . . . . Level 3 . | . . . . . . . . . . . . Level 4 . | . . . . . . . . . . . . Level 5 . | . . . . . . . . . . . . High Security . | . . . . . . . . . . . . Max Security . | . . . . . . . . . . . . Peak Influence 250 | . 152 97 . . 250 200 61 . . . . Initial 122 | . . 47 . . . 122 61 . . . . Average 61 | . 36 30 . . 91 103 16 . . . . Influence Increases 2591 | . 470 180 20 . 635 714 168 260 144 . . Destroy 0b10 Robot/C 1320 | . 300 120 20 . 200 400 100 100 80 . . Destroy 0b10 Robot/NC 100 | . 35 . . . 25 30 5 . 5 . . Destroy Leader 240 | . 62 30 . . 32 56 40 10 10 . . Allied During Kill 22 | . . . . . . 18 . . 4 . . Successful Hack 83 | . 12 . . . 12 52 7 . . . . Disable Machine 240 | . 30 . . . 165 45 . . . . . Destroy Structure 136 | . 1 . . . 96 23 16 . . . . Lose Combat Pursuer 450 | . 30 30 . . 105 90 . 150 45 . . Influence Decreases 2591 | . 348 302 20 . 385 838 294 256 124 24 . Entered New Map 294 | . . 75 . . . 128 65 . 2 24 . Time Decay 1866 | . 348 217 20 . 245 510 198 236 92 . . Lost Part 351 | . . 10 . . 140 120 31 20 30 . . Lost Ally 80 | . . . . . . 80 . . . . . Squads Dispatched 20 | . 2 . . . 10 6 1 . . . 1 Investigation 3 | . . . . . 3 . . . . . . Extermination 3 | . . . . . 2 . 1 . . . . Reinforcement 13 | . 2 . . . 5 6 . . . . . Assault 1 | . . . . . . . . . . . 1 Garrison . | . . . . . . . . . . . . Intercept . | . . . . . . . . . . . . Searches Triggered . | . . . . . . . . . . . . Construction Impeded 6 | . . . . . 2 4 . . . . . Haulers Reinforced . | . . . . . . . . . . . . Active Scanning Responses . | . . . . . . . . . . . . Cargo Convoy Interrupts . | . . . . . . . . . . . . Stealth | -11 -10 -10 -10 -9 -6 -6 -5 -5 -5 -5 -4 --------- Run | Yrd Mat Min Sub Scr Fac Ext Fac Upp Upp Zhi Pro Distress Signals 9 | . 2 1 . . 1 5 . . . . . Communications Jammed . | . . . . . . . . . . . . Distress Signals . | . . . . . . . . . . . . Times Spotted 142 | . 29 9 1 . 26 27 9 13 7 . 21 Peak Tracking Total 12 | . 4 2 1 . 6 6 4 5 4 . 12 Tactical Retreats 26 | . 2 2 . . 6 5 . 6 3 . 2 ECM-based Alert Blocks 8 | . . . . . 2 . . . . . 6 Traps | -11 -10 -10 -10 -9 -6 -6 -5 -5 -5 -5 -4 ------- Run | Yrd Mat Min Sub Scr Fac Ext Fac Upp Upp Zhi Pro Traps Triggered 11 | . 3 . . . 1 4 3 . . . . Indirectly . | . . . . . . . . . . . . Trap Hack Attempts . | . . . . . . . . . . . . Triggered . | . . . . . . . . . . . . Disarmed . | . . . . . . . . . . . . Reprogrammed . | . . . . . . . . . . . . Reused . | . . . . . . . . . . . . Traps Extracted . | . . . . . . . . . . . . Installed . | . . . . . . . . . . . . Triggered . | . . . . . . . . . . . . Machines | -11 -10 -10 -10 -9 -6 -6 -5 -5 -5 -5 -4 ---------- Run | Yrd Mat Min Sub Scr Fac Ext Fac Upp Upp Zhi Pro Machines Disabled 16 | . 2 . . . 11 3 . . . . . Max in Single Turn 6 | . 1 . . . 6 1 . . . . . Garrison Access 1 | . . . . . 1 . . . . . . Machines Repaired . | . . . . . . . . . . . . Machines Dismantled . | . . . . . . . . . . . . Machines Sabotaged . | . . . . . . . . . . . . Overloaded Fab Kills . | . . . . . . . . . . . . Hacking | -11 -10 -10 -10 -9 -6 -6 -5 -5 -5 -5 -4 --------- Run | Yrd Mat Min Sub Scr Fac Ext Fac Upp Upp Zhi Pro Machines Accessed 39 | . 6 . . 5 7 10 2 . . 9 . Terminals 18 | . 4 . . . 2 10 2 . . . . Fabricators . | . . . . . . . . . . . . Repair Stations . | . . . . . . . . . . . . Recycling Units 5 | . 2 . . . 3 . . . . . . Scanalyzers 1 | . . . . . 1 . . . . . . Garrison Access 1 | . . . . . 1 . . . . . . Total Hacks 146 | . 16 . . 36 17 24 5 . . 48 . Successful 122 | . 7 . . 36 14 13 4 . . 48 . Failed 24 | . 9 . . . 3 11 1 . . . . Catastrophic 3 | . 1 . . . . 2 . . . . . Database Lockouts . | . . . . . . . . . . . . Manual 30 | . 11 . . . 7 9 3 . . . . Terminals 44 | . 9 . . . 6 24 5 . . . . Fabricators . | . . . . . . . . . . . . Repair Stations . | . . . . . . . . . . . . Recycling Units 10 | . 7 . . . 3 . . . . . . Scanalyzers 7 | . . . . . 7 . . . . . . Garrison Access 1 | . . . . . 1 . . . . . . Terminal Hacks 103 | . 5 . . 36 1 11 2 . . 48 . Record 73 | . . . . 36 . 1 . . . 36 . Part Schematic 5 | . . . . . . 1 . . . 4 . Robot Analysis 13 | . 5 . . . . 3 1 . . 4 . Prototype ID Bank 5 | . . . . . . 1 . . . 4 . Open Door 3 | . . . . . . 3 . . . . . Branch Access Points 2 | . . . . . 1 . 1 . . . . Locate Traps 1 | . . . . . . 1 . . . . . Zone Layout 1 | . . . . . . 1 . . . . . Fabricator Hacks . | . . . . . . . . . . . . Repair Station Hacks . | . . . . . . . . . . . . Recycling Unit Hacks 2 | . 2 . . . . . . . . . . Report Inventory 1 | . 1 . . . . . . . . . . Retrieve Components 1 | . 1 . . . . . . . . . . Scanalyzer 7 | . . . . . 7 . . . . . . Retrieve Study 7 | . . . . . 7 . . . . . . Garrison Access Hacks 1 | . . . . . 1 . . . . . . Seal Access 1 | . . . . . 1 . . . . . . Unauthorized Hacks 9 | . . . . . 5 2 2 . . . . Terminals 6 | . . . . . 2 2 2 . . . . Botnet 6 | . . . . . 2 2 2 . . . . Fabricators . | . . . . . . . . . . . . Repair Stations . | . . . . . . . . . . . . Recycling Units 3 | . . . . . 3 . . . . . . Fedlink 3 | . . . . . 3 . . . . . . Scanalyzers . | . . . . . . . . . . . . Garrison Access . | . . . . . . . . . . . . Data Cores Recovered 1 | . 1 . . . . . . . . . . Used 1 | . 1 . . . . . . . . . . Hacking Detections 18 | . 6 . . . 3 7 2 . . . . Full Trace Events . | . . . . . . . . . . . . Feedback Events . | . . . . . . . . . . . . Feedback Blocked . | . . . . . . . . . . . . Robot Schematics Acquired . | . . . . . . . . . . . . Robots Built . | . . . . . . . . . . . . Authchips . | . . . . . . . . . . . . Time . | . . . . . . . . . . . . Total Robot Build Rating . | . . . . . . . . . . . . Part Schematics Acquired 5 | . . . . . . 1 . . . 4 . Parts Built . | . . . . . . . . . . . . Authchips . | . . . . . . . . . . . . Time . | . . . . . . . . . . . . Total Part Build Rating . | . . . . . . . . . . . . Part Studies Acquired 7 | . . . . . 7 . . . . . . Parts Repaired . | . . . . . . . . . . . . Time . | . . . . . . . . . . . . Parts Recycled . | . . . . . . . . . . . . Recycled Matter . | . . . . . . . . . . . . Retrieved Matter . | . . . . . . . . . . . . Retrieved Components 2 | . 2 . . . . . . . . . . Parts Scanalyzed . | . . . . . . . . . . . . Part Schematics Acquired . | . . . . . . . . . . . . Parts Damaged . | . . . . . . . . . . . . Bothacking | -11 -10 -10 -10 -9 -6 -6 -5 -5 -5 -5 -4 ------------ Run | Yrd Mat Min Sub Scr Fac Ext Fac Upp Upp Zhi Pro Used RIF Installer . | . . . . . . . . . . . . Robots Hacked . | . . . . . . . . . . . . Non-combat . | . . . . . . . . . . . . Combat . | . . . . . . . . . . . . Robot Hacks Applied . | . . . . . . . . . . . . Relay Couplers Released . | . . . . . . . . . . . . Fabnet Peak Effective % . | . . . . . . . . . . . . Robots Rewired . | . . . . . . . . . . . . Allies Hacked . | . . . . . . . . . . . . Hacks Repelled . | . . . . . . . . . . . . Allies | -11 -10 -10 -10 -9 -6 -6 -5 -5 -5 -5 -4 -------- Run | Yrd Mat Min Sub Scr Fac Ext Fac Upp Upp Zhi Pro Total Allies 5 | . . . . . . 4 . . 1 . . Largest Group 2 | . . . . . . 2 . . 1 . . Highest-Rated Group 138 | . . . . . . 56 . . 138 . . Highest-Rated Ally 138 | . . . . . . 31 . . 138 . . Total Orders . | . . . . . . . . . . . . Ally Attacks 29 | . . . . . . 22 . . 7 . . Total Damage 1562 | . . . . . . 624 . . 938 . . Kills 5 | . . . . . . 3 . . 2 . . Allies Corrupted . | . . . . . . . . . . . . Allies Melted 1 | . . . . . . . . . 1 . . Intel | -11 -10 -10 -10 -9 -6 -6 -5 -5 -5 -5 -4 ------- Run | Yrd Mat Min Sub Scr Fac Ext Fac Upp Upp Zhi Pro Active Infowar (turns) 5605 | . . . 167 1418 691 1460 698 565 305 152 149 Optics 3807 | . . . . . 478 1460 698 565 305 152 149 Sensors 145 | . . . . . 145 . . . . . . Terrain 1814 | . . . 167 1418 229 . . . . . . ECM 589 | . . . . . 470 . . . . 9 110 Robot Analysis Total 13 | . 5 . . . . 3 1 . . 4 . Derelict Logs Recovered 4 | . . 1 1 . . . . 2 . . . Drone Launches . | . . . . . . . . . . . . Drone Recoveries . | . . . . . . . . . . . . Exploration | -11 -10 -10 -10 -9 -6 -6 -5 -5 -5 -5 -4 ------------- Run | Yrd Mat Min Sub Scr Fac Ext Fac Upp Upp Zhi Pro Turns Passed 7428 | 78 1044 644 187 1418 691 1460 698 565 342 152 149 Spaces Moved 5798 | 44 618 443 158 1452 511 651 403 807 402 190 119 Core 295 | 4 . . . . . . . . 162 129 . Treads 370 | 40 330 . . . . . . . . . . Legs 1118 | . . . . . . 575 363 . . 61 119 Wheels 2928 | . 288 443 158 1452 511 76 . . . . . Hover 1087 | . . . . . . . 40 807 240 . . Flight . | . . . . . . . . . . . . Fastest Speed 50 | 50 105 105 90 90 80 120 116 60 50 50 120 Average Speed 102 | 150 134 105 104 96 93 151 133 62 61 72 120 Slowest Speed 330 | 160 160 105 105 105 110 330 240 120 70 120 120 Overloaded Moves . | . . . . . . . . . . . . Propulsion Burnouts . | . . . . . . . . . . . . Robots Hopped . | . . . . . . . . . . . . Potential Cave-ins . | . . . . . . . . . . . . Cave-ins Triggered . | . . . . . . . . . . . . Teleports 1 | . . . . . . . . . . . 1 Exploration Rate (%) 46 | 4 94 50 17 87 17 51 11 88 45 63 31 Regions Visited 11 Branch Regions 8 Pre-discovered Areas 6 | . . . . 1 1 . . 1 . 3 . Known Exits Taken 8 | . 1 1 . . 1 1 1 1 1 1 . Unknown Exits Taken 3 | 1 . . 1 1 . . . . . . . Scrap Searched 9 | . . 1 . 2 . . . 5 1 . . Spaces Dug 16 | . . . . . 9 . 4 3 . . . Terrain Destroyed 141 | . . . . . 100 23 7 10 1 . . Melee 1 | . . . . . . . 1 . . . . Projectile 53 | . . . . . 16 20 6 10 1 . . AOE 86 | . . . . . 83 3 . . . . . Terrain Rammed . | . . . . . . . . . . . . Walls Destroyed . | . . . . . . . . . . . . Machines Disabled . | . . . . . . . . . . . . Actions | -11 -10 -10 -10 -9 -6 -6 -5 -5 -5 -5 -4 --------- Run | Yrd Mat Min Sub Scr Fac Ext Fac Upp Upp Zhi Pro Total 6760 | 53 752 576 167 1471 624 945 517 848 482 201 124 Wait 286 | . 15 99 1 . 5 88 33 3 41 1 . Move 5787 | 43 617 442 157 1451 510 650 402 806 401 189 119 Hop . | . . . . . . . . . . . . Pick Up 100 | 4 30 3 . 8 14 16 15 5 2 3 . Fast Attach 44 | 6 5 1 . 1 3 14 4 2 1 6 1 Attach 46 | . 2 . . 1 15 10 10 3 2 2 1 Detach 3 | . . . . . . 2 . 1 . . . Swap 38 | . 9 4 1 2 6 10 6 . . . . Drop 79 | . 22 4 2 7 5 17 15 5 2 . . Fire 271 | . 24 23 6 . 62 89 29 23 15 . . Melee 56 | . 28 . . . 4 21 3 . . . . Ram 17 | . . . . . . . . . 17 . . Kick 5 | . . . . . . 2 . . . . 3 Crush . | . . . . . . . . . . . . Escape Stasis 26 | . . . . . . 26 . . . . . Rewire 1 | . . . . 1 . . . . . . . Trap . | . . . . . . . . . . . . Miscellaneous 1 | . . . . . . . . . 1 . . Route ------- -11/Scrapyard -10/Materials (discovered 4 exits: *Mat x3 / *Min) -10/Mines (discovered 3 exits: *Mat x2 / *Sub) -10/Subcaves (discovered 2 exits: Rec / *Scr) -9/Scraptown (discovered 2 exits: *Fac x2) -6/Factory (discovered 5 exits: *Fac / Low x2 / *Ext x2) -6/Extension -5/Factory (discovered 2 exits: *Upp x2) -5/Upper Caves -5/Upper Caves (discovered 2 exits: *Zhi / *Fac) -5/Zhirov -4/Proximity Caves History --------- Turn | Location | Event 8 | -11/Scrapyard | Discovered new exit (range 15) 79 | -11/Scrapyard | Entered Materials 316 | -10/Materials | Build established: Mutant 552 | -10/Materials | Discovered new exit (range 10) 887 | -10/Materials | Discovered new exit (range 10) 1031 | -10/Materials | Discovered new exit (range 12) 1055 | -10/Materials | Identified exit to Materials 1118 | -10/Materials | Discovered new exit (range 6) 1122 | -10/Materials | Identified exit to Mines 1123 | -10/Materials | Entered Mines 1185 | -10/Mines | Discovered exit to Materials (range 10) 1227 | -10/Mines | Assembled infested the area 1232 | -10/Mines | Assisted by a Guerilla fighting off Assembled 1233 | -10/Mines | Discovered exit to Materials (range 7) 1676 | -10/Mines | Learned location of 2 exits from Materials 1759 | -10/Mines | Discovered new exit (range 9) 1766 | -10/Mines | Identified exit to Subcaves 1767 | -10/Mines | Entered Subcaves 1768 | -10/Subcaves | Approached by a straggling Scientist 1824 | -10/Subcaves | Identified exit to Recycling 1916 | -10/Subcaves | Core integrity fell below 50% 1952 | -10/Subcaves | Scientist uncovered a shortcut to Scraptown 1954 | -10/Subcaves | Entered Scraptown 1956 | -9/Scraptown | System corruption cleaned by C-Scrubber 2021 | -9/Scraptown | Learned location of Extension (-6) 2105 | -9/Scraptown | Discovered new exit (range 5) 2167 | -9/Scraptown | Visited Spacefarers 2234 | -9/Scraptown | Visited UFD Registry 2234 | -9/Scraptown | Registered with UFD as "Steamspawn" 2253 | -9/Scraptown | Visited IN-MT5's Study 2311 | -9/Scraptown | Visited Cyclists 2319 | -9/Scraptown | Entered Cyclist Reading Room 2498 | -9/Scraptown | Visited Research Penetration Think Tank 2518 | -9/Scraptown | Visited Derelict Rescue Squad 2525 | -9/Scraptown | Found DRS Beacon 2543 | -9/Scraptown | Visited Scrapoid Pod Storage 2653 | -9/Scraptown | Visited Abandonware Association 2662 | -9/Scraptown | Learned abandonware demo "OVRCLOCK.EXE" 2678 | -9/Scraptown | Learned abandonware demo "HACKBUD.EXE" 2697 | -9/Scraptown | Visited Supply Room 2725 | -9/Scraptown | Visited Junk Repository 2757 | -9/Scraptown | Visited Science Testing Area 2778 | -9/Scraptown | Visited Junk Repository 2814 | -9/Scraptown | Visited LU-1G1's Boring Crew 3297 | -9/Scraptown | Met Optimus 3297 | -9/Scraptown | Accepted into 0bPrime 3369 | -9/Scraptown | Civil war broke out across Scraptown 3370 | -9/Scraptown | Discovered new exit (range 3) 3372 | -9/Scraptown | Entered Factory 3372 | -6/Factory | Evolved 8 slots: Propulsion x2, Utility x6 3496 | -6/Factory | Loaded intel: 8 recycling unit locations 3552 | -6/Factory | Lost 3 parts (1p2u) 3577 | -6/Factory | Identified exit to Lower Caves 3577 | -6/Factory | Identified exit to Extension 3741 | -6/Factory | Learned location of Protoforge (-3) 3849 | -6/Factory | Discovered new exit (range 19) 3900 | -6/Factory | Lost 6 parts (2n3u1w) 3975 | -6/Factory | Build established: Hacker-Mutant 4025 | -6/Factory | Identified exit to Factory 4054 | -6/Factory | Lost 4 parts (1p2n1u) 4063 | -6/Factory | Entered Extension 4110 | -6/Extension | Rescued a captive Derelict 4120 | -6/Extension | Rescued a captive Derelict 4449 | -6/Extension | Core integrity fell below 50% 4490 | -6/Extension | Build established: Scavenger-Mutant 4838 | -6/Extension | Rescued a captive Derelict 4839 | -6/Extension | Rescued a captive Derelict 5007 | -6/Extension | Spotted B-75 Beast 5441 | -6/Extension | Destroyed B-75 Beast 5463 | -6/Extension | Disrupted transfer network 5468 | -6/Extension | Spotted B-75 Beast 5469 | -6/Extension | Lost 4 parts (2n1u1w) 5521 | -6/Extension | Discovered exit to Factory (range 3) 5523 | -6/Extension | Entered Factory 5523 | -5/Factory | Evolved 2 slots: Power x1, Weapon x1 5552 | -5/Factory | Lost 3 parts (1n1u1w) 5699 | -5/Factory | System corruption reached 10% 5730 | -5/Factory | Lost 5 parts (1p1n2u1w) 5797 | -5/Factory | Identified exit to Upper Caves 6091 | -5/Factory | Build established: Scavenger-Gladiator 6221 | -5/Factory | Entered Upper Caves 6228 | -5/Upper Caves | Lost 5 parts (2p2n1w) 6314 | -5/Upper Caves | Lost 3 parts (1p1n1w) 6316 | -5/Upper Caves | Learned location of Warlord (-4) 6333 | -5/Upper Caves | Learned 4 Factory zone layouts 6494 | -5/Upper Caves | Build established: Scavenger-Mutant 6781 | -5/Upper Caves | Discovered new exit (range 9) 6786 | -5/Upper Caves | Identified exit to Upper Caves 6786 | -5/Upper Caves | Entered another Upper Caves area 6803 | -5/Upper Caves | Spotted B-75 Beast 6811 | -5/Upper Caves | Activated DRS Beacon 6831 | -5/Upper Caves | Build established: Hacker-Mutant 6966 | -5/Upper Caves | Attracted the attention of an 0b10 checkpoint 6976 | -5/Upper Caves | Core integrity fell below 50% 7021 | -5/Upper Caves | Core integrity fell below 20% 7044 | -5/Upper Caves | Lost 8 parts (2n3u3w) 7044 | -5/Upper Caves | Discovered new exit (range 14) 7050 | -5/Upper Caves | Identified exit to Zhirov 7087 | -5/Upper Caves | 99-TNT showed up to help 7089 | -5/Upper Caves | 99-TNT revealed a hidden path 7097 | -5/Upper Caves | Identified exit to Factory 7128 | -5/Upper Caves | Entered Zhirov 7128 | -5/Zhirov | Discovered new exit (range 3) 7130 | -5/Zhirov | Identified exit to Proximity Caves 7156 | -5/Zhirov | Learned location of Quarantine (-3) 7156 | -5/Zhirov | Learned location of Testing (-2) 7156 | -5/Zhirov | Learned location of Command (-1) 7172 | -5/Zhirov | Found Alien Artifact 7179 | -5/Zhirov | Found Alien Artifact 7274 | -5/Zhirov | Build established: Mutant 7280 | -5/Zhirov | Entered Proximity Caves 7309 | -4/Proximity Caves | Attracted the attention of an 0b10 outpost 7314 | -4/Proximity Caves | Identified Transdimensional Reconstructor 7314 | -4/Proximity Caves | Warped through subspace 7429 | -4/Proximity Caves | Destroyed by G-73 Enforcer with Phase Gun Last Messages --------------- 07310_ Kicked G-73 Enforcer out of the way. 07312_ Imp. Heat Sink destroyed. 07313_ Y-72 Warden: "REQUESTING BACKUP." 07314_ Identified Transdimensional Reconstructor. 07314_ Warped through subspace. 07332_ System corrupted: Heat flow error (+227). 07347_ System corrupted: IFF burst signal emitted. 07383_ System corrupted: Carbon-fiber Leg rejected. 07383_ Acquired Carbon-fiber Leg. 07401_ :I6ICVTV L53 JYW89 3|5UPDC 07416_ System corrupted: Matter fused (-6). 07421_ C-45 Heavy ARC bursts open, deploying its payload. 07421_ G-73 Enforcer unfolds itself. 07421_ G-67 Veteran unfolds itself. 07421_ B-60 Warrior unfolds itself. 07421_ G-67 Veteran unfolds itself. 07426_ Carbon-fiber Leg destroyed. 07429_ Fusion Reactor blown off. 07429_ Adv. Myomer Leg blown off. 07429_ E-15 Imp destroyed. Map ----- +----------------------------------------------------+ | ?????????????????????????????????????????????????? | | ?????????????????????????????????????????????????? | | ?????????????????????????????????????????????????? | | ?????????????????????????????????????????????????? | | ?????????????????????????????????????????????????? | | ?????????????????????????????????????????????????? | | ?????????????????????????????????????????????????? | | ??????###?????????????##?????????????????????????? | | ?????## ##????##????# #?????????????????????????? | | ?????# #??## ##??# ######????????????????????? | | ?????# [ ?## #?? ? ###??????????????????? | | ?????# !$ ## #?? ? ##?????????????????? | | ?????# ## #??# ?? ??????????????????? | | ????## # # #???# ?? ??????????????????? | | ?#### # ##??? ??? ???????????????????? | | ## # ##???? ??? #???????????????????? | | # ## #?????# ??## #???????????????????? | | ## #???### #??# ??#?????????????????? | | ?### ##??## #?## ?? ##????????????????? | | ???## ##???# #?# s #? ##???????? ????? | | ????# ###???## #?# ss## ### ## ?????? | | ????## ####### #?# ?????? | | ?????# #?# ###ss ????????? | | #????# ##?# ## #???????????????? | | ##???# #### b % #????????????????? | | #???# ## ==@= ###????????????????? | | #???# ### /= ####??????????????????? | | ###?# #?# ## #?#???????????????????? | | ### ########g #???????????????????? | | # ##???#%g #??????????????????? | | ## #??# g ##??????????????????? | | ## ### ### ##???????????????????? | | #?# ##????????????????????? | | ## #?????????????????????? | | ##? #?????????????????????? | | ##?? ????????????????????? | | #??# ???????????????????? | | ###??# ??????????????????? | | ##????# ?????????????????? | | ##?????##### ## ????????????????? | | ##??????????# ##? # #?????????????????? | | #???????????###?? ####??????????????????? | | #???????????????? #?????????????????????? | | # ## ???????????????? #?????????????????????? | | #########???????????????? #?????????????????????? | | ????????????????????????? ??????????????????????? | | ????????????????????????? ??????????????????????? | | ?????????????????????????????????????????????????? | | ?????????????????????????????????????????????????? | | ?????????????????????????????????????????????????? | +----------------------------------------------------+ Best States ------------- Heat Dissipation 59 Energy Generation 32 Energy Capacity 505 Matter Stores 342 Matter Capacity 400 Sight Range 22 Robot Scan Range 14 Terrain Scan Range 16 Terrain Scan Density 210 ECM Strength 2 Power Amplification 30 Armor Coverage 750 Resistance: KI 20 Resistance: TH 20 Evasion (%) 55 Melee Accuracy 8 Target Analysis 9 Core Analysis 6 Recoil Reduction 2 Offensive Hacking 22 Defensive Hacking 14 Item Schematics ----------------- Micro-nuke Launcher | -6/Extension | Hacked Assault Drone Bay | -5/Zhirov | Free Exp. Heat Sink | -5/Zhirov | Free Exp. Optical Array | -5/Zhirov | Free Imp. Arc Thrower | -5/Zhirov | Free Robot Schematics ------------------ None Fabricated ------------ Nothing Repaired ---------- Nothing Studied --------- Powered Hammer | -6/Factory | Hacked Hvy. Plasma Cannon | -6/Factory | Hacked Greatsword | -6/Factory | Hacked Arm. Wheel | -6/Factory | Hacked Imp. Deuterium Engine | -6/Factory | Hacked Lgt. Ion Engine | -6/Factory | Hacked Hvy. Ion Cannon | -6/Factory | Hacked Alien Tech Used ----------------- Transdimensional Reconstructor Achievements -------------- root@ Challenges ------------ None Game ------ Seed MissileSpacefoldInsulator Manual? 0 Play Time 02:17:03 Cumulative 71.8 hours Start 2026.02.05 @ 18:59:18 End 2026.02.05 @ 21:23:20 Sessions 1 Manual Loads 0 Difficulty Rogue Special Mode None Game No. 49 Rogue 49 Adventurer 0 Explorer 0 Win Type - Total 3 Types 3/0/0/0/0/0/0/0/0/0 Lore% 40 Gallery% 43 Achievement% 31 Wizard Run 0 Options --------- Layout 0 ASCII 0 Keyboard 0 Movement Numpad Keybinds 0 Fullscreen 2 Font 24/Terminus Map View 76x50 Zoom Use 0% Tactical HUD 1 Map Filters NONE Filters NONE Steam 1 RUN: ba4db17f-48cf-41fb-af01-e1aca6c1000f